Cogmind - Beta 13 @@@ ROGUE MODE // 2024.04.21 @ 13:52:36 Player: Olafz Result: Destroyed by G-47 Trooper with Particle Gun Performance ------------- Evolutions (3) 1500 Regions Visited (7) 1400 Robots Destroyed (43) 215 Value Destroyed (1845) 1845 Prototype IDs (25) 500 Alien Tech Used (0) 0 Bonus (376) 376 TOTAL SCORE: 5836 Bonus ------- Follower Combat Kills 76 Aligned with FarCom 300 Cogmind --------- Core Integrity 0/700 Matter 288/300 Energy 44/100 System Corruption 14% Temperature Cool (24) Movement Walking (120) Location -7/Storage Parts ------- > --- POWER (1) -------- (None) > --- PROPULSION (3) --- Carbon-fiber Leg Improved Carbon-fiber Leg Improved Carbon-fiber Leg > --- UTILITY (6) ------ Large Storage Unit Improved Light Armor Plating > --- WEAPON (3) ------- (None) > --- INVENTORY (15) --- Hybrid Deuterium Engine Coolant Injector Melee Analysis Suite Actuator Array Transmission Jammer Advanced ECM Suite Reaction Control System Improved Light Armor Plating Guided Plasma Cannon Minigun Heavy Mace Peak State ------------ > --- POWER ------------ Light Deuterium Engine > --- PROPULSION ------- Improved Carbon-fiber Leg Improved Carbon-fiber Leg Improved Titanium Leg > --- UTILITY ---------- Improved Heat Sink Large Storage Unit Improved Sensor Array Improved Signal Interpreter Target Analyzer Hardened Medium Armor Plating > --- WEAPON ----------- Heavy Laser Minigun Power Maul > --- INVENTORY -------- Deuterium Engine Micro Nuclear Core Carbon-fiber Leg Carbon-fiber Leg VSS Leg Coolant Injector Melee Analysis Suite Actuator Array Transmission Jammer Advanced ECM Suite Reaction Control System Plasma Cannon Guided Plasma Cannon Minigun Power Maul [Rating: 47] Favorites ----------- Power Ion Engine Engine Ion Engine Power Core Light Nuclear Core Propulsion Aluminum Leg Leg Aluminum Leg Utility Large Storage Unit Device Improved Sensor Array Storage Large Storage Unit Processor Improved Signal Interpreter Protection Hardened Medium Armor Plating Weapon Guided Plasma Cannon Energy Gun Particle Gun Energy Cannon Guided Plasma Cannon Ballistic Gun Light Assault Rifle Impact Weapon Power Maul Slashing Weapon Katana Build | -11 -10 -10 -10 -9 -8 -7 -7 ------- Run | Yrd Mat Min Exi Min Mat Fac Sto Slots Evolved 6 | . . . . . 4 2 . Power . | . . . . . . . . Propulsion 1 | . . . . . 1 . . Utility 4 | . . . . . 3 1 . Weapon 1 | . . . . . . 1 . Parts Attached 74 | . 7 4 1 7 17 18 20 Power 13 | . . 1 . 2 2 4 4 Engine 9 | . . 1 . 2 1 3 2 Core 4 | . . . . . 1 1 2 Reactor . | . . . . . . . . Propulsion 24 | . 2 2 . 3 6 6 5 Treads . | . . . . . . . . Leg 24 | . 2 2 . 3 6 6 5 Wheel . | . . . . . . . . Hover . | . . . . . . . . Flight . | . . . . . . . . Utility 19 | . 1 1 . 1 4 5 7 Device 11 | . . 1 . 1 4 1 4 Storage 2 | . 1 . . . . 1 . Processor 3 | . . . . . . 2 1 Hackware . | . . . . . . . . Protection 3 | . . . . . . 1 2 Artifact . | . . . . . . . . Weapon 18 | . 4 . 1 1 5 3 4 Energy Gun 5 | . 2 . . 1 1 1 . Energy Cannon 4 | . 2 . 1 . . . 1 Ballistic Gun 1 | . . . . . . 1 . Ballistic Cannon . | . . . . . . . . Launcher . | . . . . . . . . Special Weapon . | . . . . . . . . Impact Weapon 6 | . . . . . 2 1 3 Slashing Weapon 2 | . . . . . 2 . . Piercing Weapon . | . . . . . . . . Special Melee Weapon . | . . . . . . . . Unidentified Prototypes 2 | . . . . . 1 1 . Corrupted Parts 1 | . . . . . . . 1 System Corruption 6 | . . . . . . . 6 Parts Lost 28 | . 1 . . 1 2 1 23 Power 4 | . 1 . . . . . 3 Propulsion 5 | . . . . . 1 . 4 Utility 12 | . . . . . 1 1 10 Weapon 7 | . . . . 1 . . 6 Highest Loss Streak 8 | . 1 . . 1 2 1 8 To Critical Strikes . | . . . . . . . . Average Slot Usage (%) 91 | . 78 89 100 100 95 99 63 Engine 7 | . 7 8 14 14 2 6 4 Core 1 | . . . . . 6 . 1 Leg 24 | . 28 28 28 28 26 23 16 Device 16 | . . 9 14 14 32 18 6 Storage 10 | . 14 14 14 14 9 7 7 Processor 4 | . . . . . . 11 8 Protection 2 | . . . . . . 6 3 Energy Gun 6 | . 9 . . 12 9 7 . Energy Cannon 5 | . 4 14 14 14 2 . 1 Ballistic Gun 5 | . 14 14 14 1 . 6 . Impact Weapon 3 | . . . . . 1 7 10 Naked Turns . | . . . . . . . . Heaviest Build 54 | 10 24 30 37 41 54 50 48 Greatest Support 56 | 20 20 20 20 23 45 56 54 Greatest Overweight (x) 9 | . 1 1 1 1 2 1 9 Average Overweight (x) . | . . 1 1 1 1 . . Largest Inventory Capacity 15 | . 15 15 15 15 15 15 15 Average Capacity 14 | . 9 15 15 15 15 15 15 Most Carried 15 | . 8 11 12 15 15 15 15 Average Carried 12 | . 5 10 11 9 14 14 12 Final Capacity 15 | 8 15 15 15 15 15 15 15 Final Carried 15 | 6 8 11 9 15 15 15 11 Class Distribution -------------------- 36% | Scavenger-Mutant 22% | Scavenger-Assassin 20% | Assassin 17% | Mutant 3% | Scavenger-Skirmisher Dominant Class ---------------- Mutant | -10/Materials Scavenger-Mutant | -10/Mines Scavenger-Mutant | -10/Exiles Scavenger-Mutant | -9/Mines Scavenger-Assassin | -8/Materials Assassin | -7/Factory Mutant | -7/Storage Resources | -11 -10 -10 -10 -9 -8 -7 -7 ----------- Run | Yrd Mat Min Exi Min Mat Fac Sto Matter Collected 1052 | 200 41 95 . 76 145 169 326 Remotely . | . . . . . . . . Salvage Created 1828 | . 195 104 . 266 521 219 523 Parts 78 | . 6 5 . 11 23 20 13 Haulers Intercepted . | . . . . . . . . Recyclers Shooed . | . . . . . . . . Parts Field Recycled . | . . . . . . . . Retrieved Matter . | . . . . . . . . Parts Self-Destructed . | . . . . . . . . Prevented . | . . . . . . . . Kills | -11 -10 -10 -10 -9 -8 -7 -7 ------- Run | Yrd Mat Min Exi Min Mat Fac Sto Combat Hostiles Destroyed 39 | . 4 2 . 6 10 4 13 Melee 7 | . . . . . 2 1 4 Guns 10 | . 4 . . 2 1 3 . Cannons 12 | . . 2 . 4 6 . . Classes Destroyed 9 | . 1 . . 2 3 1 2 Builder 1 | . . . . . . . 1 Watcher 3 | . . . . . 1 2 . Swarmer 4 | . . . . . . . 4 Grunt 19 | . 4 2 . 4 6 . 3 Brawler 1 | . . . . 1 . . . Duelist 2 | . . . . 1 . . 1 Sentry 7 | . . . . . 3 . 4 Hunter 1 | . . . . . 1 . . Programmer 5 | . . . . . . 4 1 Best Kill Streak 4 | . 2 2 . 3 3 1 4 Combat Bots Only 4 | . 2 2 . 3 3 1 4 Max Kills in Single Turn 1 | . 1 1 . 1 1 1 1 Gunslinging . | . . . . . . . . Exploded . | . . . . . . . . Melee 1 | . . . . . 1 1 1 Uniques/NPCs Destroyed . | . . . . . . . . Combat | -11 -10 -10 -10 -9 -8 -7 -7 -------- Run | Yrd Mat Min Exi Min Mat Fac Sto Hostile Shots Fired 598 | . 36 12 . 29 66 54 401 Missed 185 | . 8 2 . 8 24 14 129 Damage Taken 4995 | . 384 149 . 225 892 603 2742 Core 1058 | . 132 17 . 42 167 60 640 Absorbed by Shields 82 | . . . . . . . 82 Regen/Repaired (Parts) 160 | . . . . . 92 68 . Core Remaining (%) 64 | 100 . . . 23 69 . . Volleys Fired 136 | . 26 9 . 25 39 36 1 Largest 2 | . 2 2 . 1 1 2 1 Hottest 120 | . 70 80 . 120 120 94 69 Shots Fired 207 | . 52 18 . 25 39 72 1 Gun 165 | . 52 9 . 17 14 72 1 Cannon 42 | . . 9 . 8 25 . . Launcher . | . . . . . . . . Special . | . . . . . . . . Kinetic 88 | . 26 9 . 16 . 37 . Thermal 119 | . 26 9 . 9 39 35 1 Explosive . | . . . . . . . . Electromagnetic . | . . . . . . . . Robot Hit Streak 17 | . 8 9 . 8 17 9 . Robot Miss Streak 3 | . 3 2 . 1 1 3 1 Penetration Max . | . . . . . . . . Secondary Targets . | . . . . . . . . Shots Hit Robots 187 | . 35 12 . 18 26 51 45 Core Hits 54 | . 12 4 . 8 15 10 5 Critical Kills 1 | . . . . . . . 1 Critical Parts Destroyed 14 | . . . . . . 2 12 Critical Strikes 22 | . 4 . . . 1 2 15 Burn 4 | . 4 . . . . . . Destroy 2 | . . . . . . 2 . Smash 15 | . . . . . . . 15 Sever 1 | . . . . . 1 . . Melee Attacks 89 | . . . . . 12 4 73 Impact 83 | . . . . . 6 4 73 Slashing 6 | . . . . . 6 . . Piercing . | . . . . . . . . Sneak Attacks 1 | . . . . . . . 1 Combat Hostiles . | . . . . . . . . Follow-up Attacks 7 | . . . . . . . 7 Damage Inflicted 5126 | . 381 170 . 391 1125 1200 1859 Guns 1728 | . 376 47 . 111 204 990 . Cannons 1159 | . . 123 . 277 759 . . Explosions . | . . . . . . . . Melee 2222 | . . . . . 158 210 1854 Ramming 17 | . 5 . . 3 4 . 5 Kinetic 792 | . 125 47 . 93 . 527 . Thermal 2095 | . 251 123 . 295 963 463 . Explosive . | . . . . . . . . Electromagnetic . | . . . . . . . . Impact 2064 | . . . . . . 210 1854 Slashing 158 | . . . . . 158 . . Piercing . | . . . . . . . . Highest Corruption 14 | . . . . . 1 7 14 Average Corruption 5 | . . . . . 1 4 7 Corruption Purged . | . . . . . . . . Corruption Blocked . | . . . . . . . . Effects 41 | . . . . . 1 17 23 Message Errors 16 | . . . . . . 9 7 Matter Fused 8 | . . . . . . 2 6 Heat Flow Errors 4 | . . . . . . 1 3 Energy Discharges 2 | . . . . . . . 2 Parts Rejected 2 | . . . . . . . 2 Data Loss (minor) 4 | . . . . . . 3 1 Data Loss (major) 2 | . . . . . 1 . 1 Misfires 1 | . . . . . . 1 . Alerts 1 | . . . . . . . 1 Weapon Failures 1 | . . . . . . 1 . Overload Shots . | . . . . . . . . Overflow Damage 778 | . . . . . 31 69 678 Projectiles 31 | . . . . . 31 . . Explosions . | . . . . . . . . Melee 747 | . . . . . . 69 678 Knockbacks 10 | . . . . . . 1 9 Impact 9 | . . . . . . 1 8 Kinetic . | . . . . . . . . Secondary 1 | . . . . . . . 1 Self-Inflicted Damage . | . . . . . . . . Shots . | . . . . . . . . Rammed . | . . . . . . . . Targets Rammed 4 | . 1 . . 1 1 . 1 Kicked 4 | . 1 . . 1 1 . 1 Crushed . | . . . . . . . . Highest Temperature 494 | . 241 170 . 324 494 300 221 Average Temperature 120 | . 111 80 . 139 223 31 90 Received Heat Transfer 1767 | . 231 84 . 126 360 . 966 Effects 5 | . 2 . . . 3 . . Shutdowns 1 | . . . . . 1 . . Energy Bleed 1 | . . . . . 1 . . Interference 2 | . 2 . . . . . . Short Circuit 1 | . . . . . 1 . . Siege Activations . | . . . . . . . . Robots Corrupted . | . . . . . . . . Combat Hostiles . | . . . . . . . . Parts Fried 10 | . . . . . . . 10 Impact Corruptions 25 | . . . . . . 3 22 Robots Melted 1 | . . . . . 1 . . Combat Hostiles 1 | . . . . . 1 . . Parts Melted 15 | . 6 . . 2 7 . . Heat Transferred 4873 | . 1036 259 . 677 2124 777 . Parts Sabotaged . | . . . . . . . . Parts Stolen . | . . . . . . . . Parts Stripped . | . . . . . . . . Power Chain Reactions . | . . . . . . . . Alert | -11 -10 -10 -10 -9 -8 -7 -7 ------- Run | Yrd Mat Min Exi Min Mat Fac Sto Peak Influence 236 | . 106 98 . 70 236 97 205 Initial 40 | . . 40 . . . . . Average 61 | . 68 84 . 24 114 34 82 Maximum Alert Level 1 | . . . . . 1 . . Low Security (%) 96 | . 100 100 . 100 81 100 100 Level 1 3 | . . . . . 18 . . Level 2 . | . . . . . . . . Level 3 . | . . . . . . . . Level 4 . | . . . . . . . . Level 5 . | . . . . . . . . High Security . | . . . . . . . . Max Security . | . . . . . . . . Squads Dispatched 8 | . . . . . . 3 5 Investigation 2 | . . . . . . . 2 Extermination 3 | . . . . . . 3 . Reinforcement 1 | . . . . . . . 1 Assault 2 | . . . . . . . 2 Garrison . | . . . . . . . . Intercept . | . . . . . . . . Searches Triggered . | . . . . . . . . Construction Impeded . | . . . . . . . . Haulers Reinforced . | . . . . . . . . Active Scanning Responses . | . . . . . . . . Cargo Convoy Interrupts . | . . . . . . . . Stealth | -11 -10 -10 -10 -9 -8 -7 -7 --------- Run | Yrd Mat Min Exi Min Mat Fac Sto Distress Signals 1 | . 1 . . . . . . Communications Jammed . | . . . . . . . . Distress Signals . | . . . . . . . . Times Spotted 57 | . 6 2 . 6 9 9 25 Peak Tracking Total 10 | . 4 2 . 3 4 2 10 Tactical Retreats 5 | . . . . . 1 . 4 Traps | -11 -10 -10 -10 -9 -8 -7 -7 ------- Run | Yrd Mat Min Exi Min Mat Fac Sto Traps Triggered 3 | . 1 . . . 1 . 1 Indirectly . | . . . . . . . . Trap Hack Attempts . | . . . . . . . . Triggered . | . . . . . . . . Disarmed . | . . . . . . . . Reprogrammed . | . . . . . . . . Reused . | . . . . . . . . Traps Extracted . | . . . . . . . . Installed . | . . . . . . . . Triggered . | . . . . . . . . Machines | -11 -10 -10 -10 -9 -8 -7 -7 ---------- Run | Yrd Mat Min Exi Min Mat Fac Sto Machines Disabled 1 | . . . . . . . 1 Max in Single Turn 1 | . . . . . . . 1 Machines Repaired . | . . . . . . . . Machines Dismantled . | . . . . . . . . Machines Sabotaged . | . . . . . . . . Overloaded Fab Kills . | . . . . . . . . Hacking | -11 -10 -10 -10 -9 -8 -7 -7 --------- Run | Yrd Mat Min Exi Min Mat Fac Sto Machines Accessed 8 | . . 1 1 1 1 2 2 Terminals 4 | . . 1 . . . 1 2 Fabricators . | . . . . . . . . Repair Stations 2 | . . . . . 1 1 . Recycling Units . | . . . . . . . . Scanalyzers . | . . . . . . . . Garrison Access . | . . . . . . . . Total Hacks 18 | . . 1 1 1 4 8 3 Successful 8 | . . 1 1 1 3 2 . Failed 10 | . . . . . 1 6 3 Catastrophic 4 | . . . . . . 3 1 Database Lockouts . | . . . . . . . . Manual 6 | . . 1 1 . . 3 1 Terminals 7 | . . 1 . . . 3 3 Fabricators . | . . . . . . . . Repair Stations 9 | . . . . . 4 5 . Recycling Units . | . . . . . . . . Scanalyzers . | . . . . . . . . Garrison Access . | . . . . . . . . Terminal Hacks 3 | . . 1 1 1 . . . Open Door 1 | . . . . 1 . . . Branch Access Points 1 | . . 1 . . . . . Derelict Proto ID Bank 1 | . . . 1 . . . . Fabricator Hacks . | . . . . . . . . Repair Station Hacks 5 | . . . . . 3 2 . Scan Component 3 | . . . . . 2 1 . Repair 2 | . . . . . 1 1 . Recycling Unit Hacks . | . . . . . . . . Scanalyzer . | . . . . . . . . Garrison Access Hacks . | . . . . . . . . Unauthorized Hacks . | . . . . . . . . Terminals . | . . . . . . . . Fabricators . | . . . . . . . . Repair Stations . | . . . . . . . . Recycling Units . | . . . . . . . . Scanalyzers . | . . . . . . . . Garrison Access . | . . . . . . . . Data Cores Recovered . | . . . . . . . . Used . | . . . . . . . . Hacking Detections 5 | . . . . . 1 2 2 Full Trace Events 1 | . . . . . . . 1 Feedback Events . | . . . . . . . . Feedback Blocked . | . . . . . . . . Robot Schematics Acquired . | . . . . . . . . Robots Built . | . . . . . . . . Authchips . | . . . . . . . . Time . | . . . . . . . . Total Robot Build Rating . | . . . . . . . . Part Schematics Acquired . | . . . . . . . . Parts Built . | . . . . . . . . Authchips . | . . . . . . . . Time . | . . . . . . . . Total Part Build Rating . | . . . . . . . . Parts Repaired 2 | . . . . . 1 1 . Time 57 | . . . . . 38 19 . Parts Recycled . | . . . . . . . . Recycled Matter . | . . . . . . . . Retrieved Matter . | . . . . . . . . Retrieved Components . | . . . . . . . . Parts Scanalyzed . | . . . . . . . . Part Schematics Acquired . | . . . . . . . . Parts Damaged . | . . . . . . . . Bothacking | -11 -10 -10 -10 -9 -8 -7 -7 ------------ Run | Yrd Mat Min Exi Min Mat Fac Sto Used RIF Installer . | . . . . . . . . Robots Hacked . | . . . . . . . . Non-combat . | . . . . . . . . Combat . | . . . . . . . . Robot Hacks Applied . | . . . . . . . . Relay Couplers Released . | . . . . . . . . Fabnet Peak Effective % . | . . . . . . . . Robots Rewired . | . . . . . . . . Allies Hacked . | . . . . . . . . Hacks Repelled . | . . . . . . . . Allies | -11 -10 -10 -10 -9 -8 -7 -7 -------- Run | Yrd Mat Min Exi Min Mat Fac Sto Total Allies 2 | . . . . . . . 2 Largest Group 2 | . . . . . . . 2 Highest-Rated Group 62 | . . . . . . . 62 Highest-Rated Ally 31 | . . . . . . . 31 Total Orders . | . . . . . . . . Ally Attacks 9 | . . . . . . . 9 Total Damage 171 | . . . . . . . 171 Kills 2 | . . . . . . . 2 Allies Corrupted . | . . . . . . . . Allies Melted . | . . . . . . . . Intel | -11 -10 -10 -10 -9 -8 -7 -7 ------- Run | Yrd Mat Min Exi Min Mat Fac Sto Robot Analysis Total . | . . . . . . . . Derelict Logs Recovered 1 | . . . . 1 . . . Drone Launches . | . . . . . . . . Drone Recoveries . | . . . . . . . . Exploration | -11 -10 -10 -10 -9 -8 -7 -7 ------------- Run | Yrd Mat Min Exi Min Mat Fac Sto Turns Passed 4746 | . 347 253 553 884 818 1234 657 Spaces Moved 2402 | 1 194 115 290 419 323 753 307 Core 2 | . . . . . . . 2 Treads . | . . . . . . . . Legs 2400 | 1 194 115 290 419 323 753 305 Wheels . | . . . . . . . . Hover . | . . . . . . . . Flight . | . . . . . . . . Fastest Speed 113 | 120 120 190 190 190 120 113 120 Average Speed 161 | 120 130 190 190 190 190 137 135 Slowest Speed 500 | 120 190 190 190 190 260 190 500 Overloaded Moves . | . . . . . . . . Propulsion Burnouts . | . . . . . . . . Robots Hopped . | . . . . . . . . Cave-ins Triggered 1 | . . . . . 1 . . Exploration Rate (%) 38 | 2 45 20 74 77 26 24 38 Regions Visited 7 Branch Regions 4 Pre-discovered Areas . | . . . . . . . . Known Exits Taken 2 | . . . . . 1 1 . Unknown Exits Taken 5 | 1 1 1 1 1 . . . Scrap Searched 3 | . . . . 3 . . . Spaces Dug 10 | . . . . . 6 . 4 Terrain Destroyed 14 | . . . . . 10 . 4 Melee 10 | . . . . . 6 . 4 Projectile 4 | . . . . . 4 . . AOE . | . . . . . . . . Terrain Rammed . | . . . . . . . . Walls Destroyed . | . . . . . . . . Machines Disabled . | . . . . . . . . Actions | -11 -10 -10 -10 -9 -8 -7 -7 --------- Run | Yrd Mat Min Exi Min Mat Fac Sto Total 2925 | . 241 132 293 485 472 891 411 Wait 153 | . 6 4 . 27 60 42 14 Move 2394 | . 193 114 289 418 321 752 307 Hop . | . . . . . . . . Pick Up 31 | . 2 1 . 4 7 15 2 Fast Attach 27 | . 3 2 . . 8 4 10 Attach 17 | . 2 . . 1 3 4 7 Detach 5 | . 3 . . . 1 1 . Swap 30 | . 2 2 1 6 6 10 3 Drop 46 | . 3 . 3 3 13 23 1 Fire 136 | . 26 9 . 25 39 36 1 Melee 81 | . . . . . 12 4 65 Ram . | . . . . . . . . Kick 4 | . 1 . . 1 1 . 1 Crush . | . . . . . . . . Escape Stasis 1 | . . . . . 1 . . Rewire . | . . . . . . . . Trap . | . . . . . . . . Miscellaneous . | . . . . . . . . Route ------- -11/Scrapyard -10/Materials (discovered 2 exits: [*Mat] / *Min) -10/Mines -10/Exiles -9/Mines -8/Materials -7/Factory -7/Storage History --------- Turn | Location | Event 1 | -11/Scrapyard | Discovered new exit (range 0) 1 | -11/Scrapyard | Entered Materials 192 | -10/Materials | Core integrity fell below 50% 266 | -10/Materials | Discovered new exit (range 4) 313 | -10/Materials | Build established: Mutant 336 | -10/Materials | Discovered new exit (range 6) 348 | -10/Materials | Entered Mines 586 | -10/Mines | Deemed a non-threat by the Exiles lab entrance 586 | -10/Mines | Discovered new exit (range 5) 601 | -10/Mines | Entered Exiles 649 | -10/Exiles | Met 8R-AWN 679 | -10/Exiles | Met EX-HEX 708 | -10/Exiles | Build established: Scavenger-Mutant 740 | -10/Exiles | Met EX-BIN 763 | -10/Exiles | Aligned with FarCom system 765 | -10/Exiles | Given EX-Vault access code 810 | -10/Exiles | Opened EX-Vault 828 | -10/Exiles | Found Gui. Plasma Cannon 869 | -10/Exiles | Warned to stay clear of 0b10 Research branches 924 | -10/Exiles | Met EX-DEC 984 | -10/Exiles | Visited The Gauntlet 1135 | -10/Exiles | Discovered new exit (range 12) 1154 | -10/Exiles | Left Exiles lab with Gui. Plasma Cannon 1154 | -10/Exiles | Entered Mines 1289 | -9/Mines | Learned location of 1 exit from Materials 1763 | -9/Mines | Found the Drone Emporium 1769 | -9/Mines | Found Prototype Device 2006 | -9/Mines | Discovered new exit (range 7) 2038 | -9/Mines | Entered Materials 2038 | -8/Materials | Evolved 4 slots: Propulsion x1, Utility x3 2039 | -8/Materials | Identified exit to Factory 2065 | -8/Materials | Identified Sensor Drone Bay 2535 | -8/Materials | Build established: Scavenger-Assassin 2757 | -8/Materials | Repaired Carbon-fiber Leg 2839 | -8/Materials | Crushed by falling debris 2856 | -8/Materials | Entered Factory 2856 | -7/Factory | Evolved 2 slots: Utility x1, Weapon x1 2927 | -7/Factory | Repaired Carbon-fiber Leg 4057 | -7/Factory | Build established: Assassin 4084 | -7/Factory | Discovered new exit (range 5) 4089 | -7/Factory | Identified exit to Storage 4090 | -7/Factory | Entered Storage 4333 | -7/Storage | Lost 8 parts (1p2n4u1w) 4398 | -7/Storage | Core integrity fell below 50% 4428 | -7/Storage | Core integrity fell below 20% 4448 | -7/Storage | Lost 7 parts (1p1n4u1w) 4571 | -7/Storage | Met a pair of Derelict thieves 4701 | -7/Storage | Build established: Mutant 4744 | -7/Storage | System corruption reached 10% 4747 | -7/Storage | Destroyed by G-47 Trooper with Particle Gun Last Messages --------------- MCXCX>X#H8WA87IBDYEW& MRS8O BXBGHAP VN L-41 Fighter knocked back. Critical hit (Burn: +37). System corrupted: Matter fused (-10). Destroyed Imp. Melee Analysis Suite. Destroyed Core Shielding. L-41 Fighter system corrupted by crushing effect. L-41 Fighter system terminally corrupted. Microactuators fried. Carbon-fiber Leg fried. Imp. Shield Generator destroyed. Acquired Corrupted Carbon-fiber Leg. Integrated Corrupted Carbon-fiber Leg (+6). Complication: Energy sink damages Corrupted Carbon-fiber Leg (-35). G-47 Trooper suffers critical hit (Burn). Critical hit (Burn: +37). Power Maul destroyed. Critical hit (Burn: +37). Mic. Nuclear Core destroyed. Kicked G-50 Soldier out of the way. Map ----- +----------------------------------------------------+ | ????????????????????????????? #? | | ????????????????????????????? #? | | ????????????????????????????? #? | | ?????????????????????????????????########## #####? | | ??????????????????????????????????????????# #????? | | ??????????????????????????????????????????# #????? | | ?????????????????????????????????????###??# #????? | | ????????????????????????????????????# ??# #????? | | ????????????????????????????????????# """?# #????? | | ????????????????????????????????????# """?# #????? | | ????????????????????????????????????# """ # #????? | | ????????????????????????????????????# """ # ###### | | ????????????????????????????????????# """ + / % | | ????????????????????????????????????# # # | | ???????????????????????????Y?????########## # | | ?????????????????????????????????#==/ # %# | | ????????????????Y????????????????#=// # %+%" | | ????????????????????????########?#= # # "] | | ????????????????????????#! ! #?# # # "/ | | ????????????????????????# ! #?# + # "" | | ????????????????????????# !!#?# # # ? | | ????????????????????????#! #?# # ###? | | ??????????Y?????????????##"g"###?# # #??? | | ????????????????????????# gg T#??# # #??? | | ????????????????????????#ggm ##??###" "#### #??? | | ?????????????????????####@#g#####??#"R"#??# #??? | | ?????????????????????# mg #??#"""#??# #??? | | ?????????????????????# g #??####???# #??? | | ?????????????????????# g #?????????# #??? | | ?????????????????????######## ########### %#??? | | ??????????????????Y?????????# # """ # #??? | | ????????????????????????????# # "Y" """ # #??? | | ????????????????????????????# # " " """ # ###? | | ????????????????????????????# # """ # # ## | | ????????????????????????????# + """ # # " | | ????????????????????????????# # = """ # !# " | | ????????????????????????????# # #[!%# " | | ????????????????????????????# # #[ # | | ????????????????????????????# ######### # #%! | | ????????????????????????????# #???????###% %+% | | ????????????????????????????# #????????## # | | ????????????????????????????# #????????##% # | | ????????????????????????????# #????????## *#### | | ????????????????????????????# =#?????????#%* ## | | ????????????????????????????# [%########### =## | | ????????????????????????????#=*[#"""T"""##!|= # | | ????????????????????????????# !* ! # | | ????????????????????????????# [% / | | ????????????????????????????# * # | | ????????????????????????????###########+## # | +----------------------------------------------------+ Best States ------------- Heat Dissipation 48 Energy Generation 15 Energy Capacity 800 Matter Stores 300 Matter Capacity 300 Sight Range 16 Robot Scan Range 15 Terrain Scan Density 10 Armor Coverage 225 Evasion (%) 59 Target Analysis 5 Item Schematics ----------------- None Robot Schematics ------------------ None Fabricated ------------ Nothing Alien Tech Used ----------------- None Achievements -------------- None Challenges ------------ None Game ------ Seed ScanHellfireDriver Manual? 0 Play Time 00:42:29 Cumulative 74.9 hours Start 2024.04.20 @ 23:51:43 End 2024.04.21 @ 13:52:36 Sessions 3 Manual Loads 0 Difficulty Rogue Special Mode None Game No. 159 Rogue 157 Adventurer 2 Explorer 0 Win Type - Total 1 Types 1/0/0/0/0/0/0/0/0 Lore% 47 Gallery% 47 Achievement% 37 Wizard Run 0 Options --------- Layout 0 ASCII 0 Keyboard 1 Movement Numpad Keybinds 1 Fullscreen 2 Font 18/SmallcapsGlow Map View 76x50 Zoom Use 0% Tactical HUD 1 Map Filters NONE Filters NONE Steam 1 RUN: dfc81de7-750a-4569-9101-cb9c1e2706b4